Cogmind - Beta 17 @@@ ROGUE MODE // 2026.07.16 @ 22:11:49 Player: CONM Result: Destroyed by E3-LTV(R) with Subdweller Beam Cannon Performance ------------- Evolutions (0) 0 Regions Visited (2) 400 Robots Destroyed (18) 90 Value Destroyed (506) 506 Prototype IDs (2) 40 Alien Tech Used (0) 0 Bonus (0) 0 TOTAL SCORE: 1036 Bonus ------- None Cogmind --------- Core Integrity 0/250 Matter 300/300 Energy 125/125 System Corruption 0% Temperature Cool (9) Movement Core (750) Ox14 Location -10/Subcaves Parts ------- > --- POWER (1) -------- Light Ion Engine > --- PROPULSION (2) --- (None) > --- UTILITY (2) ------ High-capacity Storage Unit Seismic Detector > --- WEAPON (2) ------- (None) > --- INVENTORY (20) --- Wheel Wheel Small Storage Unit Medium Storage Unit Improved Terrain Scanner Targeting Computer Light Assault Rifle Subdweller Machine Gun Peak State ------------ > --- POWER ------------ Ion Engine > --- PROPULSION ------- Light Treads Light Treads > --- UTILITY ---------- Medium Storage Unit Seismic Detector > --- WEAPON ----------- Assault Rifle Grenade Launcher > --- INVENTORY -------- Light Ion Engine Wheel Wheel Small Storage Unit Improved Terrain Scanner Light Assault Rifle Grenade Launcher Grenade Launcher [Rating: 8] Favorites ----------- Power Ion Engine Engine Ion Engine Propulsion Light Treads Treads Light Treads Wheel Wheel Utility Seismic Detector Device Seismic Detector Storage Small Storage Unit Weapon Assault Rifle Ballistic Gun Assault Rifle Launcher Grenade Launcher Build | -11 -10 -10 ------- Run | Yrd Mat Sub Slots Evolved . | . . . Power . | . . . Propulsion . | . . . Utility . | . . . Weapon . | . . . Parts Attached 17 | 8 7 2 Power 2 | 2 . . Engine 2 | 2 . . Core . | . . . Reactor . | . . . Propulsion 6 | 2 2 2 Treads 2 | 2 . . Leg . | . . . Wheel 4 | . 2 2 Hover . | . . . Flight . | . . . Utility 4 | 2 2 . Device 1 | 1 . . Storage 3 | 1 2 . Processor . | . . . Hackware . | . . . Protection . | . . . Artifact . | . . . Weapon 5 | 2 3 . Energy Gun . | . . . Energy Cannon . | . . . Ballistic Gun 2 | 2 . . Ballistic Cannon . | . . . Launcher 3 | . 3 . Special Weapon . | . . . Impact Weapon . | . . . Slashing Weapon . | . . . Piercing Weapon . | . . . Special Melee Weapon . | . . . Unidentified Prototypes . | . . . Parts Lost 9 | . 3 6 Power 1 | . 1 . Propulsion 4 | . . 4 Utility . | . . . Weapon 4 | . 2 2 Highest Loss Streak 6 | . 2 6 To Critical Strikes . | . . . Average Backups 6 | 2 6 8 Power . | . . . Propulsion 2 | 1 2 3 Utility 1 | . 1 4 Weapon 1 | . 2 1 Tool/Special . | . . . Unused Backups 4 | . . 4 Power . | . . . Propulsion 2 | . . 2 Utility 2 | . . 2 Weapon . | . . . Tool/Special . | . . . Average Slot Usage (%) 99 | . 99 96 Engine 13 | . 13 14 Treads 21 | . 24 . Wheel 6 | . 3 28 Device 14 | . 14 14 Storage 14 | . 14 14 Ballistic Gun 16 | . 18 . Launcher 11 | . 9 24 Peak Build Rating 8 | 7 8 8 Average Rating 7 | 5 7 7 On Entrance 5 | . 7 8 Avg Prop Armor Cover (%) . | . . . Naked Turns . | . . . Heaviest Build 50 | 14 50 50 Greatest Support 40 | 40 40 20 Greatest Overweight (x) 4 | . 4 4 Average Overweight (x) . | . . 2 Largest Inventory Capacity 20 | 8 20 20 Average Capacity 11 | 6 10 20 Most Carried 11 | 4 11 9 Average Carried 6 | 2 6 8 Final Capacity 20 | 8 20 20 Final Carried 9 | 4 9 8 Class Distribution -------------------- 100% | Mutant Dominant Class ---------------- Mutant | -10/Materials Mutant | -10/Subcaves Resources | -11 -10 -10 ----------- Run | Yrd Mat Sub Matter Collected 711 | 155 270 286 Remotely . | . . . Salvage Created 467 | 26 441 . Parts 33 | 4 29 . Haulers Intercepted . | . . . Recyclers Shooed . | . . . Parts Field Recycled . | . . . Retrieved Matter . | . . . Parts Self-Destructed . | . . . Prevented . | . . . Parts Restored . | . . . Kills | -11 -10 -10 ------- Run | Yrd Mat Sub Combat Hostiles Destroyed 17 | . 17 . Guns 8 | . 8 . AOE 9 | . 9 . Classes Destroyed 4 | 1 3 . Tunneler 1 | 1 . . Swarmer 5 | . 5 . Grunt 9 | . 9 . Subdweller 3 | . 3 . Best Kill Streak 3 | 1 3 . Combat Bots Only 3 | . 3 . Max Kills in Single Turn 2 | 1 2 . Gunslinging . | . . . Exploded 2 | . 2 . Melee . | . . . Uniques/NPCs Destroyed . | . . . Combat | -11 -10 -10 -------- Run | Yrd Mat Sub Hostile Shots Fired 85 | . 57 28 Missed 18 | . 11 7 Hits 67 | . 46 21 Projectile 67 | . 46 21 Damage Taken 1150 | . 721 429 Core 269 | . 121 148 Absorbed by Shields . | . . . Core Remaining (%) 100 | 100 . . Volleys Fired 51 | 3 48 . Largest 2 | 2 2 . Hottest 60 | 40 60 . Shots Fired 83 | 6 77 . Gun 59 | 6 53 . Cannon . | . . . Launcher 24 | . 24 . Special . | . . . Kinetic 59 | 6 53 . Thermal . | . . . Explosive 24 | . 24 . Electromagnetic . | . . . Robot Hit Streak 8 | 5 8 . Robot Miss Streak 3 | 1 3 . Penetration Max . | . . . Secondary Targets . | . . . Shots Hit Robots 46 | 5 41 . Core Hits 36 | 2 34 . Critical Kills . | . . . Critical Parts Destroyed . | . . . Critical Strikes . | . . . Melee Attacks . | . . . Impact . | . . . Slashing . | . . . Piercing . | . . . Sneak Attacks . | . . . Combat Hostiles . | . . . Follow-up Attacks . | . . . Damage Inflicted 1367 | 52 1315 . Guns 392 | 52 340 . Cannons . | . . . Explosions 975 | . 975 . Melee . | . . . Ramming . | . . . Kinetic 392 | 52 340 . Thermal . | . . . Explosive 975 | . 975 . Electromagnetic . | . . . Impact . | . . . Slashing . | . . . Piercing . | . . . Highest Corruption . | . . . Average Corruption . | . . . Corruption Purged . | . . . Corruption Blocked . | . . . Overload Shots . | . . . Overflow Damage 32 | . 32 . Projectiles . | . . . Explosions 32 | . 32 . Melee . | . . . Knockbacks . | . . . Impact . | . . . Kinetic . | . . . Secondary . | . . . Self-Inflicted Damage 124 | . 124 . Shots 8 | . 8 . Rammed . | . . . Targets Rammed . | . . . Kicked . | . . . Crushed . | . . . Highest Temperature 12 | . 12 . Average Temperature 4 | . 4 . Received Heat Transfer 300 | . 201 99 Siege Activations . | . . . Martial Activations . | . . . Shielding Activations . | . . . Robots Disrupted . | . . . Combat Hostiles . | . . . Robots Corrupted . | . . . Combat Hostiles . | . . . Parts Fried . | . . . Impact Corruptions . | . . . Robots Melted . | . . . Combat Hostiles . | . . . Parts Melted 1 | . 1 . Heat Transferred . | . . . Parts Sabotaged . | . . . Parts Stolen . | . . . Parts Stripped . | . . . Power Chain Reactions . | . . . Alert | -11 -10 -10 ------- Run | Yrd Mat Sub Maximum Alert Level 1 | . 1 . Low Security (%) 61 | 100 55 . Level 1 38 | . 44 . Level 2 . | . . . Level 3 . | . . . Level 4 . | . . . Level 5 . | . . . High Security . | . . . Max Security . | . . . Peak Influence 301 | 5 301 . Initial . | . . . Average 134 | . 155 . Influence Increases 538 | 5 533 . Destroy 0b10 Robot/C 280 | . 280 . Destroy 0b10 Robot/NC 5 | 5 . . Destroy Leader 70 | . 70 . Successful Hack 10 | . 10 . Disable Machine 15 | . 15 . Destroy Structure 68 | . 68 . Lose Combat Pursuer 90 | . 90 . Influence Decreases 538 | 5 356 177 Entered New Map 85 | . . 85 Time Decay 391 | 5 326 60 Lost Part 62 | . 30 32 Squads Dispatched 4 | . 4 . Investigation 2 | . 2 . Extermination . | . . . Reinforcement 2 | . 2 . Assault . | . . . Garrison . | . . . Intercept . | . . . Searches Triggered . | . . . Construction Impeded . | . . . Haulers Reinforced . | . . . Active Scanning Responses . | . . . Cargo Convoy Interrupts . | . . . Stealth | -11 -10 -10 --------- Run | Yrd Mat Sub Distress Signals 1 | . 1 . Communications Jammed . | . . . Distress Signals . | . . . Times Spotted 33 | . 27 6 Peak Tracking Total 4 | . 4 4 Tactical Retreats 5 | . 4 1 Traps | -11 -10 -10 ------- Run | Yrd Mat Sub Traps Triggered 3 | . 3 . Indirectly . | . . . Trap Hack Attempts . | . . . Triggered . | . . . Disarmed . | . . . Reprogrammed . | . . . Reused . | . . . Traps Extracted . | . . . Installed . | . . . Triggered . | . . . Machines | -11 -10 -10 ---------- Run | Yrd Mat Sub Machines Disabled 1 | . 1 . Max in Single Turn 1 | . 1 . Machines Repaired . | . . . Machines Dismantled . | . . . Machines Sabotaged . | . . . Overloaded Fab Kills . | . . . Hacking | -11 -10 -10 --------- Run | Yrd Mat Sub Machines Accessed 4 | . 4 . Terminals 4 | . 4 . Fabricators . | . . . Repair Stations . | . . . Recycling Units . | . . . Scanalyzers . | . . . Garrison Access . | . . . Total Hacks 7 | . 7 . Successful 3 | . 3 . Failed 4 | . 4 . Catastrophic 1 | . 1 . Database Lockouts . | . . . Manual . | . . . Terminals 7 | . 7 . Fabricators . | . . . Repair Stations . | . . . Recycling Units . | . . . Scanalyzers . | . . . Garrison Access . | . . . Terminal Hacks 3 | . 3 . Prototype ID Bank 1 | . 1 . Terminal Index 1 | . 1 . Hauler Manifests 1 | . 1 . Fabricator Hacks . | . . . Repair Station Hacks . | . . . Recycling Unit Hacks . | . . . Scanalyzer . | . . . Garrison Access Hacks . | . . . Unauthorized Hacks . | . . . Terminals . | . . . Fabricators . | . . . Repair Stations . | . . . Recycling Units . | . . . Scanalyzers . | . . . Garrison Access . | . . . Data Cores Recovered . | . . . Used . | . . . Hacking Detections 2 | . 2 . Full Trace Events . | . . . Feedback Events . | . . . Feedback Blocked . | . . . Robot Schematics Acquired . | . . . Robots Built . | . . . Authchips . | . . . Time . | . . . Total Robot Build Rating . | . . . Part Schematics Acquired . | . . . Parts Built . | . . . Authchips . | . . . Time . | . . . Total Part Build Rating . | . . . Part Studies Acquired . | . . . Parts Repaired . | . . . Time . | . . . Parts Recycled . | . . . Recycled Matter . | . . . Retrieved Matter . | . . . Retrieved Components . | . . . Parts Scanalyzed . | . . . Part Schematics Acquired . | . . . Parts Damaged . | . . . Bothacking | -11 -10 -10 ------------ Run | Yrd Mat Sub Used RIF Installer . | . . . Robots Hacked . | . . . Non-combat . | . . . Combat . | . . . Robot Hacks Applied . | . . . Relay Couplers Released . | . . . Fabnet Peak Effective % . | . . . Robots Rewired . | . . . Allies Hacked . | . . . Hacks Repelled . | . . . Allies | -11 -10 -10 -------- Run | Yrd Mat Sub Total Allies . | . . . Largest Group . | . . . Highest-Rated Group . | . . . Highest-Rated Ally . | . . . Total Orders . | . . . Ally Attacks . | . . . Total Damage . | . . . Kills . | . . . Allies Corrupted . | . . . Allies Melted . | . . . Intel | -11 -10 -10 ------- Run | Yrd Mat Sub Active Infowar (turns) 1081 | 39 918 124 Seismic 1081 | 39 918 124 Robot Analysis Total . | . . . Derelict Logs Recovered 1 | . . 1 Drone Launches . | . . . Drone Recoveries . | . . . Exploration | -11 -10 -10 ------------- Run | Yrd Mat Sub Turns Passed 1188 | 146 918 124 Spaces Moved 689 | 81 508 100 Core 5 | 5 . . Treads 496 | 76 420 . Legs . | . . . Wheels 188 | . 88 100 Hover . | . . . Flight . | . . . Fastest Speed 50 | 50 110 110 Average Speed 146 | 153 152 110 Slowest Speed 240 | 160 240 140 Overloaded Moves . | . . . Propulsion Burnouts . | . . . Robots Hopped . | . . . Potential Cave-ins . | . . . Cave-ins Triggered . | . . . Exploration Rate (%) 33 | 5 81 14 Regions Visited 2 Branch Regions 1 Pre-discovered Areas 1 | . . 1 Known Exits Taken . | . . . Unknown Exits Taken 2 | 1 1 . Scrap Searched 8 | . . 8 Spaces Dug . | . . . Terrain Destroyed 69 | . 69 . Melee . | . . . Projectile . | . . . AOE 69 | . 69 . Terrain Rammed . | . . . Walls Destroyed . | . . . Machines Disabled . | . . . Actions | -11 -10 -10 --------- Run | Yrd Mat Sub Total 786 | 94 579 113 Wait 20 | . 10 10 Move 687 | 80 507 100 Hop . | . . . Pick Up 10 | 3 6 1 Fast Attach 7 | 7 . . Attach 5 | . 3 2 Detach . | . . . Swap 6 | 1 5 . Drop . | . . . Fire 51 | 3 48 . Melee . | . . . Ram . | . . . Kick . | . . . Crush . | . . . Escape Stasis . | . . . Rewire . | . . . Trap . | . . . Miscellaneous . | . . . Route ------- -11/Scrapyard -10/Materials (discovered 4 exits: [*Mat x2] / [*Min] / [*Sub]) -10/Subcaves History --------- Turn | Location | Event 21 | -11/Scrapyard | Discovered new exit (range 16) 147 | -11/Scrapyard | Entered Materials 300 | -10/Materials | Build established: Mutant 375 | -10/Materials | Discovered new exit (range 13) 539 | -10/Materials | Discovered new exit (range 14) 803 | -10/Materials | Discovered new exit (range 12) 947 | -10/Materials | Derelicts attacked the area 1052 | -10/Materials | Discovered new exit (range 13) 1065 | -10/Materials | Entered Subcaves 1151 | -10/Subcaves | Core integrity fell below 50% 1172 | -10/Subcaves | Learned location of Zion (-6) 1175 | -10/Subcaves | Core integrity fell below 20% 1189 | -10/Subcaves | Destroyed by E3-LTV(R) with Subdweller Beam Cannon Last Messages --------------- 01181_ Found Piercing Trap. 01181_ Found 51 Matter. 01182_ Acquired 51 matter. 01182_ Searching scrap... 01182_ Found Hvy. Battle Rifle. 01182_ Found 52 Matter. 01183_ Acquired 51 matter. 01183_ Searching scrap... 01183_ Found Sub. Laser. 01183_ Found Flamer. 01183_ Found 60 Matter. 01184_ Searching scrap... 01184_ Found Scrap Shield. 01184_ Found Sub. Machine Gun. 01184_ Found 32 Matter. 01186_ Grenade Launcher destroyed. 01186_ Wheel destroyed. 01187_ Subatomizers dissect the Mak. Laser. 01188_ Wheel destroyed. 01188_ Acquired Sub. Machine Gun. Map ----- +----------------------------------------------------+ | ????# # ## ??????????????????????????????????? | | #??## ???????????????????????????????????? | | #??# ?????????????????????????????????????? | | #??# ???????????????????????????????????????? | | #### ##????????????????????????????????????????? | | # #????????????????????????????????????????? | | ##????????????????????????????????????????? | | #?????????????????????????????????????????? | | #### #????????????????????????????????????????? | | ##??# #????????????????????????????????????????? | | #???# ##????????????????????????????????????????? | | #??? ?????????????????????????????????????????? | | #???# ##????????????????????????????????????????? | | #??# #?????????????????????????????????????????? | | #?? ?????????????????????????????????????????? | | ? ?????????????????????????????????????????? | | # ?????????????????????????????????????????? | | ## ##????????????????????????????????????????? | | ##?? ?????????????########?????????????????????? | | ##?? ???????????###<< < ###???????????????????? | | "" ??????????##< <##??????????????????? | | """???????????#<< &![ <#??????????????????? | | "" ??????????## & ! R%| <##?????????????????? | | ""??????????#< ] % << <#?????????????????? | | "#????####??#< R|R% < #?????????????????? | | ##??## #??#< R[[!@ #?????????????????? | | #### #??#< ##### <#?????????????????? | | # # #??#"" # <##?????????????????? | | ?# ## #??##""## #??????????????????? | | ?# ## ###??####" ##"< ##??????????????????? | | ## # #######" "#####???????????????????? | | ## " ###???????????????????? | | #??????????????? | | ## ##### ### #???????????????? | | #### #???# #??# #???????????????? | | ## #??# #??# ##???# #???????????????? | | ## ##??# ##????? ??????????????? | | ###???# #??????# #### ?????????????? | | ## ##????? #???????# #???? ??????????????? | | #######????? #????????##???????????????????? | | ###?????????? #?????????????????????????????? | | ????????????########?????????????????????????????? | | ?????????????????????????????????????????????????? | | ?????????????????????????????????????????????????? | | ?????????????????????????????????????????????????? | | ?????????????????????????????????????????????????? | | ?????????????????????????????????????????????????? | | ?????????????????????????????????????????????????? | | ?????????????????????????????????????????????????? | | ?????????????????????????????????????????????????? | +----------------------------------------------------+ Best States ------------- Heat Dissipation 25 Energy Generation 10 Energy Capacity 250 Matter Stores 263 Matter Capacity 300 Sight Range 16 Terrain Scan Density 10 Evasion (%) 40 Recoil Reduction 2 Item Schematics ----------------- None Robot Schematics ------------------ None Fabricated ------------ Nothing Repaired ---------- Nothing Studied --------- None Alien Tech Used ----------------- None Achievements -------------- None Challenges ------------ None Game ------ Seed ContainmentReactionFlail Manual? 0 Play Time 00:16:24 Cumulative 166.7 hours Start 2026.07.16 @ 21:42:39 End 2026.07.16 @ 22:11:49 Sessions 1 Manual Loads 0 Difficulty Rogue Special Mode None Game No. 181 Rogue 181 Adventurer 0 Explorer 0 Win Type - Total 0 Types 0/0/0/0/0/0/0/0/0/0 Lore% 56 Gallery% 45 Achievement% 32 Wizard Run 0 Options --------- Layout 0 ASCII 0 Keyboard 0 Movement Arrows Keybinds 0 Fullscreen 0 Font 16/SmallcapsGlow Map View 38x25 Zoom Use 12% Tactical HUD 1 Map Filters NONE Filters NONE Steam 1 RUN: b2bf2e16-0dfb-40b2-a14c-9029ae727e7a